bitfinex-derivatives/quotes_ETHF0:USTF0_20251028
["timestamp","ask_amount","ask_price","bid_price","bid_amount"]
[1761639738149,0.83748858,4126.0,4125.9,0.5491]
[1761639738455,0.148,4125.3,4125.2,0.7778]
[1761639738647,0.296,4125.3,4125.2,0.7778]
[1761639738845,0.83748858,4125.3,4125.2,0.7778]
[1761639739743,0.68948858,4125.3,4125.2,1.21419]
[1761639740244,0.68948858,4125.3,4125.2,0.7778]
[1761639741051,0.54148858,4125.3,4125.2,1.21419]
[1761639741245,0.148,4125.6,4125.5,1.34056]
[1761639741555,0.54271298,4125.6,4125.5,1.01346]
[1761639742149,0.54271298,4125.6,4125.5,1.34056]
[1761639742954,0.54271298,4125.6,4125.5,0.9042]
[1761639742955,0.69071298,4125.6,4125.5,0.9042]
[1761639745552,0.444,4125.2,4125.1,0.32969214]
[1761639745749,0.296,4125.2,4125.1,0.78039214]
[1761639746049,0.444,4125.2,4125.1,0.32969214]
[1761639746255,0.98671298,4125.2,4125.1,0.00259214]
[1761639746845,41.78671298,4125.2,4125.1,0.00259214]
[1761639749959,41.78671298,4125.2,4125.1,0.32969214]
[1761639751856,41.78671298,4125.2,4125.1,0.00259214]
[1761639756163,49.78671298,4125.2,4125.1,0.00259214]
[1761639756660,41.78671298,4125.2,4125.1,0.00259214]
[1761639761561,41.78671298,4125.2,4124.4,0.43647]
[1761639761767,0.4434,4124.5,4124.4,0.75167]
[1761639761959,0.98611298,4124.5,4124.4,0.75167]
[1761639762366,0.98611298,4124.5,4124.4,0.98177]
[1761639762567,0.83831298,4124.5,4124.4,0.98177]
[1761639762765,0.83831298,4124.5,4124.4,0.98488543]
[1761639766269,0.83831298,4124.5,4124.4,1.21498543]
[1761639771365,0.54271298,4124.5,4124.4,1.21498543]
[1761639771565,0.54521463,4125.0,4124.9,1.21182]
[1761639779780,1.01442443,4126.2,4125.5,1.34076]
[1761639779781,40.8,4125.6,4125.5,1.34076]
[1761639780079,41.3485765,4125.6,4125.5,1.34076]
[1761639780481,0.5485765,4125.6,4125.5,1.34076]
[1761639781176,40.8,4126.1,4126.0,1.3407]
[1761639781376,41.34791427,4126.1,4126.0,1.3407]
[1761639781777,41.49571427,4126.1,4126.0,0.4442]
[1761639781977,0.2956,4125.6,4125.5,0.3591]
[1761639782179,0.69571427,4126.0,4125.5,0.5892]
[1761639782383,0.69571427,4125.9,4125.5,1.02556]
[1761639782685,0.2956,4125.7,4125.6,0.7754]
[1761639782880,0.84351427,4125.7,4125.6,0.7754]
[1761639783786,0.99131427,4125.7,4125.6,0.7754]
[1761639783988,0.99131427,4125.7,4125.6,0.5453]
[1761639784387,0.84351427,4125.7,4125.6,0.5453]
[1761639784891,0.84351427,4125.7,4125.6,0.7537]
[1761639786384,0.99081427,4125.7,4125.6,0.7537]
[1761639786883,0.99111427,4125.7,4125.6,0.5453]
[1761639787089,0.69571427,4125.7,4125.6,0.7601]
[1761639789097,0.69571427,4125.7,4125.6,1.19645]
[1761639789596,0.54791427,4125.7,4125.6,1.19645]
[1761639792395,0.00289379,4126.3,4125.6,0.7601]
[1761639792588,0.00289379,4126.3,4125.5,0.129]
[1761639792589,0.00289379,4126.3,4126.2,0.7642]
[1761639792794,0.44569379,4126.3,4126.2,0.3365]
[1761639793093,41.24569379,4126.3,4126.2,0.3365]
[1761639793395,41.6455949,4126.3,4126.2,0.5494]
[1761639793999,0.6979949,4126.3,4126.2,0.7642]
[1761639794395,0.8455949,4126.3,4126.2,0.7642]
[1761639794590,41.6455949,4126.3,4126.2,0.7642]
[1761639795798,0.5503949,4126.3,4126.2,1.20048]
[1761639796903,0.6979949,4126.3,4126.2,0.7642]
[1761639797098,0.8455949,4126.3,4126.2,0.7642]
[1761639797402,0.5503949,4126.3,4126.2,1.20048]
[1761639799311,0.8455949,4126.3,4126.2,0.7642]
[1761639799901,0.5503949,4126.3,4125.8,0.7642]
[1761639800106,0.54750111,4126.2,4126.1,0.7642]
[1761639800505,0.54750111,4126.2,4126.1,1.20049]
[1761639803904,0.00289379,4126.3,4126.2,1.20048]
[1761639812812,40.8,4127.2,4127.1,0.7642]
[1761639813013,41.34409063,4127.2,4127.1,0.7642]
[1761639813913,0.54642265,4127.2,4127.1,1.20039]
[1761639814615,0.00233202,4127.2,4127.1,1.20039]
[1761639815612,0.00233202,4127.2,4127.1,0.7642]
[1761639816317,0.00233202,4127.2,4127.1,1.20039]
[1761639819025,0.022,4127.8,4127.7,0.7633]
[1761639819418,0.56567601,4127.8,4127.7,0.7633]
[1761639820017,0.56749206,4127.8,4127.7,0.76600268]
[1761639820526,0.71789206,4127.8,4127.7,0.76600268]
[1761639821023,0.71789206,4127.8,4127.7,1.20212268]
[1761639822126,0.56749206,4127.8,4127.7,1.20212268]
[1761639822422,0.02381605,4127.8,4127.7,1.20212268]
[1761639823024,0.02381605,4127.8,4127.7,0.76600268]
[1761639824025,0.02381605,4127.8,4127.7,1.20212268]
[1761639827220,0.02381605,4127.8,4127.7,0.76600268]
[1761639827420,0.02381605,4127.8,4127.7,1.20212268]
[1761639828930,0.17421605,4127.8,4127.7,1.20212268]
[1761639829125,0.02381605,4127.8,4127.7,1.20212268]
[1761639830729,0.17421605,4127.8,4127.7,0.76600268]
[1761639831428,0.17421605,4127.8,4127.7,1.20212268]
[1761639831938,0.8684079,4127.8,4127.7,0.76600268]
[1761639832734,0.02381605,4127.8,4127.7,1.20212268]
[1761639833424,0.56784707,4127.8,4127.7,1.20212268]
[1761639833728,0.02381605,4127.8,4127.7,1.20212268]
[1761639834130,0.02381605,4127.8,4127.7,0.76600268]
[1761639834334,0.56793093,4127.8,4127.7,1.20212268]
[1761639835728,0.02381605,4127.8,4127.7,1.20212268]
[1761639836528,0.02381605,4127.8,4127.7,0.76600268]
[1761639836937,0.56659684,4127.8,4127.7,1.20212268]
[1761639839737,0.56659684,4127.8,4127.7,0.76600268]
[1761639839934,0.71699684,4127.8,4127.7,0.76600268]
[1761639840637,0.56659684,4127.8,4127.7,1.20212268]
[1761639844142,0.56659684,4127.8,4127.7,0.76600268]
[1761639844343,0.86659684,4127.8,4127.7,0.76600268]
[1761639845138,0.71699684,4127.8,4127.7,0.76600268]
[1761639845342,0.56659684,4127.8,4127.7,0.76600268]
[1761639845543,0.56659684,4127.8,4127.7,1.20212268]
[1761639850140,0.56790282,4127.8,4127.7,1.20212268]
[1761639851546,0.56790282,4127.8,4127.7,0.76600268]
[1761639851743,0.56790282,4127.8,4127.7,1.20212268]
[1761639857354,0.86910282,4127.8,4127.7,0.76600268]
[1761639857554,0.56790282,4127.8,4127.7,1.20212268]
[1761639859357,0.71850282,4127.8,4127.7,1.20212268]
[1761639859656,0.56790282,4127.8,4127.7,1.20212268]
[1761639860150,0.71850282,4127.8,4127.7,1.20212268]
[1761639861457,0.71850282,4127.8,4127.7,0.76600268]
[1761639861657,0.86910282,4127.8,4127.7,0.76600268]
[1761639861856,1.01970282,4127.8,4127.7,0.32530268]
[1761639862056,1.01970282,4127.8,4127.7,0.00270268]
[1761639862659,0.4518,4127.1,4127.0,0.4787]
[1761639863048,0.84528677,4127.1,4127.0,0.7084]
[1761639863455,0.69468677,4127.1,4127.0,0.9229]
[1761639863758,0.69468677,4127.1,4127.0,0.92505939]
[1761639863958,0.84528677,4127.1,4127.0,0.92505939]
[1761639864554,0.84528677,4127.1,4127.0,0.71055939]
[1761639864555,0.99588677,4127.1,4127.0,0.71055939]
[1761639865557,0.84528677,4127.1,4127.0,0.92505939]
[1761639866666,0.99588677,4127.1,4127.0,0.34505939]
[1761639867660,0.99588677,4127.1,4127.0,0.57475939]
[1761639867961,0.84528677,4127.1,4127.0,0.71045939]
[1761639868361,0.99588677,4127.1,4127.0,0.71045939]
[1761639868561,0.84528677,4127.1,4127.0,1.36115939]
[1761639869764,0.69468677,4127.1,4127.0,1.36115939]
[1761639870468,0.69468677,4127.1,4127.0,0.92495939]
[1761639872672,0.69468677,4127.1,4127.0,1.36115939]
[1761639873068,0.54408677,4127.1,4127.0,1.36115939]
[1761639873373,0.1506,4127.6,4127.5,0.9228]
[1761639873578,0.69677802,4127.6,4127.5,0.9228]
[1761639873872,0.84737802,4127.6,4127.5,0.9228]
[1761639874175,0.54617802,4127.6,4127.5,1.35894]
[1761639876877,0.02381605,4127.8,4127.7,1.21582]
[1761639880879,0.17381605,4127.8,4127.7,1.21582]
[1761639881385,0.02381605,4127.8,4127.7,1.21582]
[1761639881580,0.32381605,4127.8,4127.7,0.7797]
[1761639881781,0.86985142,4127.8,4127.7,0.7797]
[1761639882687,1.01985142,4127.8,4127.7,0.3321]
[1761639883089,0.86985142,4127.8,4127.7,0.554]
[1761639883383,0.56985142,4127.8,4127.7,1.21582]
[1761639884489,0.71985142,4127.8,4127.7,1.21582]
[1761639885190,0.86985142,4127.8,4127.7,0.7797]
[1761639885990,1.01985142,4127.8,4127.7,0.554]
[1761639887187,0.45,4127.6,4127.5,0.3321]
[1761639887390,0.99603537,4127.6,4127.5,0.3321]
[1761639887879,0.84603537,4127.6,4127.5,0.9149]
[1761639888285,0.84603537,4127.6,4127.5,1.35105]
[1761639889390,0.69603537,4127.6,4127.5,1.35105]
[1761639889584,0.02381605,4127.8,4127.7,1.21582]
[1761639889788,0.57003838,4127.8,4127.7,1.21582]
[1761639897511,0.72003838,4127.8,4127.7,1.21582]
[1761639897706,1.02003838,4127.8,4127.7,0.7797]
[1761639897912,1.02003838,4127.8,4127.7,0.554]
[1761639898214,0.87003838,4127.8,4127.7,0.554]
[1761639898406,0.87003838,4127.8,4127.7,0.7797]
[1761639898712,1.02003838,4127.8,4127.7,0.3321]
[1761639898903,0.45,4127.6,4127.5,0.4673]
[1761639899106,0.99622233,4127.6,4127.5,0.4673]
[1761639899503,0.99622233,4127.6,4127.5,0.3321]
[1761639899712,0.45,4127.1,4127.0,0.33425939]
[1761639899910,0.45,4127.1,4127.0,0.69135939]
[1761639900212,0.3,4127.1,4127.0,0.69135939]
[1761639900508,0.15,4127.1,4127.0,1.35325939]
[1761639900707,0.15,4127.7,4127.6,0.7797]
[1761639900903,0.3,4127.7,4127.6,0.7797]
[1761639901106,0.84571688,4127.7,4127.6,0.7797]
[1761639901301,41.64571688,4127.7,4127.6,0.7797]
[1761639901503,41.79571688,4127.7,4127.6,0.7797]
[1761639901709,0.45,4127.4,4127.3,0.3321]
[1761639902108,0.99571688,4127.4,4127.3,0.3321]
[1761639902311,0.99571688,4127.4,4127.3,0.554]
[1761639902615,0.84571688,4127.4,4127.3,0.554]
[1761639902819,0.84571688,4127.4,4127.3,0.7797]
[1761639903017,0.02381605,4127.8,4127.5,0.9149]
[1761639903207,0.02381605,4127.8,4127.7,0.7797]
[1761639903409,0.02381605,4127.8,4127.6,1.74434118]
[1761639903410,0.3,4129.1,4129.0,0.6892]
[1761639903611,0.84594542,4129.1,4129.0,0.9149]
[1761639904515,0.84817018,4129.1,4129.0,0.9149]
[1761639904813,0.99767018,4129.1,4129.0,0.3321]
[1761639905510,0.299,4128.7,4128.6,0.5709]
[1761639905712,0.84494542,4128.7,4128.6,0.5709]
[1761639906317,0.84494542,4128.7,4128.6,0.7945]
[1761639906519,0.99444542,4128.7,4128.6,0.5709]
[1761639906718,0.99444542,4128.7,4128.6,0.3431]
[1761639907317,0.4509,4128.6,4128.5,0.3292]
[1761639907516,0.84654542,4128.6,4128.5,0.6766]
[1761639907912,0.99684542,4128.6,4128.5,0.6766]
[1761639908406,0.84654542,4128.6,4128.5,0.6766]
[1761639908613,0.84654542,4128.6,4128.5,0.8962]
[1761639910122,0.84654542,4128.6,4128.5,0.8962]
[1761639910317,0.99684542,4128.6,4128.5,0.4628]
[1761639910623,0.3006,4128.2,4128.1,0.7626]
[1761639911121,0.84654542,4128.2,4128.1,1.19868]
[1761639912224,0.84654542,4128.2,4128.1,0.7626]
[1761639913727,0.84654542,4128.2,4128.1,1.19868]
[1761639913923,0.84654542,4128.2,4128.1,0.7626]
[1761639914119,0.54594542,4128.2,4128.1,0.7626]
[1761639915422,0.69624542,4128.2,4128.1,0.7626]
[1761639916921,0.69624542,4128.2,4128.1,1.19868]
[1761639917320,0.69624542,4128.2,4128.1,0.7626]
[1761639918424,0.54594542,4128.2,4128.1,1.19867]
[1761639919322,40.8,4129.0,4128.9,0.543]
[1761639919524,41.34555148,4129.0,4128.9,0.543]
[1761639921729,41.34555148,4129.0,4128.9,0.7626]
[1761639922027,0.69585148,4129.0,4128.9,0.7626]
[1761639922728,0.84615148,4129.0,4128.9,0.7626]
[1761639923232,0.99645148,4129.0,4128.9,0.3292]
[1761639925230,0.99612273,4129.0,4128.9,0.543]
[1761639925426,0.84582273,4129.0,4128.9,0.543]
[1761639926335,0.54522273,4129.0,4128.9,0.7626]
[1761639926627,0.4346,4130.1,4130.0,0.8962]
[1761639926827,0.4346,4129.7,4129.6,0.4334]
[1761639927034,0.7622,4129.7,4129.6,0.7626]
[1761639927223,0.86662443,4131.1,4130.5,0.1336]
[1761639927429,0.4346,4130.1,4130.0,0.2138]
[1761639927630,0.43750728,4130.1,4130.0,0.21601465]
[1761639927831,0.76510728,4130.1,4130.0,0.21601465]
[1761639928529,0.76510728,4130.1,4130.0,0.00221465]
[1761639930334,0.76510728,4130.1,4130.0,0.21601465]
[1761639932833,0.76510728,4130.1,4130.0,0.00221465]
[1761639935229,0.76510728,4130.1,4130.0,0.75891465]
[1761639935638,0.76510728,4130.1,4130.0,0.43201465]
[1761639935837,0.76510728,4130.1,4130.0,0.75891465]
[1761639936239,0.00290728,4130.1,4130.0,1.32608465]
[1761639936540,0.54400728,4130.1,4130.0,1.32608465]
[1761639936733,40.8,4131.1,4130.1,0.3269]
[1761639936945,0.7553,4131.9,4131.8,0.7583]
[1761639937133,0.5411,4131.9,4131.8,1.19399]
[1761639937338,0.2251,4131.9,4131.8,0.7583]
[1761639937739,0.54418262,4131.9,4131.8,0.7583]
[1761639938045,0.75838262,4131.9,4131.8,0.7583]
[1761639938246,0.17422443,4133.5,4133.3,0.4314]
[1761639938540,0.5722,4133.5,4133.1,0.2154]
[1761639938734,0.53804999,4133.4,4132.8,0.3269]
[1761639938935,0.4393,4132.9,4132.8,0.2154]
[1761639939136,0.4393,4132.9,4132.8,0.00214279]
[1761639939336,0.44114116,4132.9,4132.8,0.21754279]
[1761639939541,0.44114116,4132.9,4132.8,0.00214279]
[1761639939934,0.44114116,4132.9,4132.1,0.3269]
[1761639939935,0.4393,4132.2,4131.7,0.3269]
[1761639940135,0.87494,4132.2,4131.7,0.5423]
[1761639940338,0.2251,4131.8,4131.7,0.7583]
[1761639940645,41.116,4132.1,4132.0,0.7583]
[1761639940845,41.116,4132.1,4132.0,0.76131279]
[1761639941242,41.116,4132.1,4132.0,0.00301279]
[1761639943646,41.64943257,4132.1,4132.0,0.00301279]
[1761639944750,0.2251,4132.4,4132.3,0.2154]
[1761639944949,0.75714116,4132.9,4132.8,0.5423]
[1761639945343,41.55714116,4132.9,4132.8,0.7583]
[1761639948542,41.55714116,4132.9,4132.8,1.19388]
[1761639948543,0.44114116,4132.9,4132.8,1.19388]
[1761639948746,0.00184116,4132.9,4132.8,1.19388]
[1761639949147,40.80184116,4132.9,4132.8,1.19388]
[1761639950346,0.00184116,4132.9,4132.8,1.19388]
[1761639950840,0.78021431,4133.8,4133.7,0.5423]
[1761639951044,0.78021431,4133.8,4133.7,0.7583]
[1761639951350,41.05001431,4133.8,4133.7,0.7583]
[1761639951542,0.02491431,4133.8,4133.7,0.7583]
[1761639951849,0.02785747,4133.8,4133.7,0.7583]
[1761639952042,40.82785747,4133.8,4133.7,0.7583]
[1761639952242,0.316,4135.4,4133.8,0.3269]
[1761639952441,0.316,4134.2,4133.7,3.87002124]
[1761639952646,0.316,4134.2,4133.5,0.1313]
[1761639952647,0.7553,4134.2,4134.1,0.5423]
[1761639953247,0.75796556,4134.2,4134.1,0.7583]
[1761639953443,0.75796556,4134.2,4134.1,0.4314]
[1761639953645,0.44196556,4134.2,4133.8,0.5423]
[1761639953847,0.4489,4133.5,4133.1,0.5423]
[1761639954145,0.316,4133.6,4133.1,0.7583]
[1761639954352,0.7553,4133.4,4133.3,0.7583]
[1761639954849,0.2251,4133.5,4133.4,0.7583]
[1761639955249,0.5411,4133.5,4133.4,0.7583]
[1761639955644,0.7553,4133.5,4133.4,0.7583]
[1761639956642,0.4393,4133.5,4133.4,0.7583]
[1761639957353,0.8882,4133.5,4133.4,0.2154]
[1761639958246,0.7553,4132.8,4132.7,0.2154]
[1761639958443,0.7553,4132.8,4132.7,0.7583]
[1761639958950,0.4393,4132.5,4132.4,0.5423]
[1761639959149,0.7553,4132.5,4132.4,0.5423]
[1761639959749,0.7553,4132.5,4132.4,0.2154]
[1761639960050,0.4393,4132.2,4132.1,0.5423]
[1761639960256,41.5553,4132.2,4132.1,0.2154]
[1761639960549,0.7553,4132.1,4132.0,0.00301279]
[1761639962861,0.316,4131.9,4130.7,0.3269]
[1761639963056,0.2251,4130.8,4130.7,0.7583]
[1761639963550,0.7553,4130.8,4130.7,0.7583]
[1761639963852,0.75798593,4130.8,4130.7,0.76090832]
[1761639964058,0.75798593,4130.8,4130.7,0.00260832]
[1761639964758,41.55798593,4130.8,4130.7,0.00260832]
[1761639966960,41.24198593,4130.8,4130.7,0.76150832]
[1761639967159,40.80268593,4130.8,4130.7,0.76150832]
[1761639968057,0.00268593,4130.8,4130.7,0.76150832]
[1761639971355,0.00268593,4130.8,4130.7,1.19730832]
[1761639975860,0.23328593,4130.8,4130.7,0.76150832]
[1761639976063,0.79418593,4130.8,4130.7,0.76150832]
[1761639976266,0.79418593,4130.8,4130.7,0.21800832]
[1761639977066,0.79418593,4130.8,4130.7,0.00260832]
[1761639977658,41.59418593,4130.8,4130.7,0.00260832]
[1761639980566,41.59418593,4130.8,4130.7,0.75860832]
[1761639981268,41.36758593,4130.8,4130.7,0.75860832]
[1761639981766,41.36758593,4130.8,4130.7,0.43180832]
[1761639982065,41.36758593,4130.8,4130.7,0.21510832]
[1761639982263,41.36758593,4130.8,4130.7,0.00260832]
[1761639984067,41.13698593,4130.8,4130.7,0.21510832]
[1761639984471,41.13698593,4130.8,4130.7,0.00260832]
[1761639985272,41.13698593,4130.8,4130.7,0.21510832]
[1761639986977,41.13698593,4130.8,4130.7,0.54190832]
[1761639987178,41.67112457,4130.8,4130.7,0.54190832]
[1761639989379,41.67112457,4130.8,4130.7,0.00260832]
[1761639996179,41.33682457,4130.8,4129.7,5.63698107]
[1761639996378,0.2101,4129.8,4129.5,0.1313]
[1761639996685,0.754,4129.7,4129.6,0.5557]
[1761639996885,0.754,4129.7,4129.6,0.7697]
[1761639997086,0.5297,4129.7,4129.6,0.77251258]
[1761639997289,0.1327,4130.5,4129.8,0.441]
[1761639997290,0.5297,4129.9,4129.8,0.441]
[1761639997584,1.28937581,4129.9,4129.6,0.22981258]
[1761639997782,0.754,4129.7,4129.6,0.22981258]
[1761639998087,0.754,4129.7,4129.6,0.55851258]
[1761639998679,0.754,4129.7,4129.6,0.77251258]
[1761640000087,0.2101,4130.0,4129.9,0.7697]
[1761640000388,0.754,4130.3,4130.2,0.7697]
[1761640000577,1.28933934,4130.3,4130.2,0.7697]
[1761640002090,1.28933934,4130.3,4130.2,0.227]
[1761640004296,1.28933934,4130.3,4130.2,0.5557]
[1761640004791,1.28933934,4130.3,4130.2,0.227]
[1761640005292,0.96973934,4130.3,4129.9,0.5557]
[1761640005495,0.754,4130.0,4129.9,0.7697]
[1761640005696,1.28933934,4130.0,4129.9,0.7697]
[1761640006592,0.754,4129.7,4129.6,0.00281258]
[1761640006791,1.28933934,4129.7,4129.6,0.00281258]
[1761640007291,1.28933934,4129.7,4129.6,0.55851258]
[1761640007496,1.28933934,4129.7,4129.6,0.22981258]
[1761640007899,42.08933934,4129.7,4129.6,0.22981258]
[1761640008599,42.08933934,4129.7,4129.6,0.00281258]
[1761640012104,0.754,4128.8,4128.7,0.227]
[1761640012302,1.28933934,4128.8,4128.7,0.227]
[1761640012904,1.28933934,4128.8,4128.4,0.3287]
[1761640013099,0.8867,4128.5,4128.4,0.55774515]
[1761640013998,0.8867,4128.5,4128.4,0.00204515]
[1761640014210,0.8867,4128.5,4128.4,0.77174515]
[1761640014802,0.8867,4128.5,4128.4,0.22904515]
[1761640015004,0.8867,4128.5,4128.4,0.00204515]
[1761640016404,0.8867,4128.5,4128.4,0.22904515]
[1761640016609,0.8867,4128.5,4128.4,0.55774515]
[1761640017313,0.8867,4128.5,4128.4,0.22904515]
[1761640018202,0.8867,4128.5,4128.4,0.00204515]
[1761640018609,1.42389209,4128.5,4128.4,0.00204515]
[1761640019220,0.8867,4128.5,4128.4,0.00204515]
[1761640019513,41.6867,4128.5,4128.4,0.00204515]
[1761640020107,42.22379527,4128.5,4128.4,0.00204515]
[1761640020506,0.3196,4129.4,4128.6,0.3287]
[1761640020707,0.3196,4129.4,4128.5,1.22078]
[1761640020708,0.4344,4129.4,4129.3,0.7697]
[1761640020911,0.97138692,4129.4,4129.3,0.227]
[1761640021116,0.3196,4129.3,4129.2,0.43596]
[1761640021320,1.29098692,4129.3,4129.2,0.99166]
[1761640021615,0.754,4129.3,4129.2,1.20566]
[1761640021916,0.5297,4129.7,4129.6,0.7697]
[1761640022217,1.06666368,4129.7,4129.6,1.20562]
[1761640022417,41.86666368,4129.7,4129.6,0.7697]
[1761640022614,0.5297,4129.7,4129.6,1.20562]
[1761640022911,0.754,4130.0,4129.9,0.7697]
[1761640023118,41.7675787,4130.0,4129.9,0.7697]
[1761640024216,0.9675787,4130.0,4129.9,0.7697]
[1761640024513,1.2940787,4130.0,4129.9,0.7697]
[1761640024702,0.7609,4130.0,4129.9,0.7697]
[1761640024909,1.29414401,4130.0,4129.9,0.7697]
[1761640025612,0.96764401,4130.0,4129.9,0.7697]
[1761640028011,40.8,4130.4,4129.9,0.441]
[1761640028211,0.4263,4130.7,4130.6,0.4274]
[1761640028414,0.4263,4130.7,4130.6,0.7535]
[1761640028716,41.57,4130.7,4130.6,0.7535]
[1761640030222,41.57,4130.7,4130.6,1.18931]
[1761640031321,41.57,4130.7,4130.6,0.7535]
[1761640032420,41.57,4130.7,4130.6,1.18931]
[1761640032822,0.00268593,4130.8,4130.7,1.1893]
[1761640036032,0.77268593,4130.8,4130.7,1.1893]
[1761640036828,0.77268593,4130.8,4130.4,0.3261]
[1761640037025,0.77,4130.5,4130.4,0.5365]
[1761640037331,0.902,4130.5,4130.4,0.64623]
[1761640037532,0.902,4130.5,4130.4,1.18933]
[1761640037734,0.77,4130.5,4130.4,1.18933]
[1761640039436,0.558,4130.7,4130.6,1.18931]
[1761640039936,0.77,4130.7,4130.6,1.18931]
[1761640040724,0.00268593,4130.8,4130.7,1.1893]
[1761640042528,0.86854772,4132.6,4130.9,0.43577]
[1761640042735,4.023,4135.1,4130.9,0.43577]
[1761640042736,0.3437,4131.9,4131.6,0.3261]
[1761640042927,0.77,4131.7,4131.1,0.76185]
[1761640043135,0.2143,4131.3,4131.2,1.18924]
[1761640043734,0.56099561,4131.3,4131.2,1.19150619]
[1761640044332,0.00299561,4131.3,4131.2,1.19150619]
[1761640044931,0.21729561,4131.3,4131.2,1.19150619]
[1761640045130,0.56099561,4131.3,4131.2,1.19150619]
[1761640045829,0.21729561,4131.3,4131.2,1.19150619]
[1761640046235,0.56099561,4131.3,4131.2,1.19150619]
[1761640046431,0.00299561,4131.3,4131.2,1.19150619]
[1761640046939,0.21729561,4131.3,4131.2,1.19150619]
[1761640047141,0.56099561,4131.3,4131.2,1.19150619]
[1761640047740,0.77299561,4131.3,4131.2,1.19150619]
[1761640048234,0.00299561,4131.3,4131.2,1.19150619]
[1761640048842,0.77299561,4131.3,4131.2,0.00226619]
[1761640049234,1.30211433,4131.3,4131.2,0.00226619]
[1761640049845,0.77299561,4131.3,4131.2,0.00226619]
[1761640050037,0.77299561,4131.3,4131.2,0.21266619]
[1761640050537,0.77299561,4131.3,4131.2,0.53876619]
[1761640050739,0.77299561,4131.3,4131.2,0.00226619]
[1761640052234,1.30258312,4131.3,4131.2,0.00226619]
[1761640055839,1.30258312,4131.3,4130.3,0.5601]
[1761640055840,0.95888312,4131.3,4130.3,0.5601]
[1761640056041,0.95888312,4131.3,4129.0,0.132]
[1761640056042,0.7603,4129.9,4129.8,1.30820118]
[1761640056241,0.3208,4129.8,4129.7,0.651]
[1761640056440,0.7603,4129.8,4129.7,1.224]
[1761640056842,0.7603,4129.8,4129.7,0.00281221]
[1761640057043,1.29069911,4129.8,4129.7,0.00281221]
[1761640057439,1.29069911,4129.8,4129.7,0.21791221]
[1761640057640,0.7603,4129.8,4129.7,1.22681221]
[1761640057840,0.7603,4129.8,4129.7,0.79091221]
[1761640058346,0.5446,4129.8,4129.7,0.79091221]
[1761640058641,0.7603,4129.8,4129.7,0.00281221]
[1761640059346,0.7603,4129.8,4129.7,0.21791221]
[1761640059539,0.7603,4129.8,4129.7,0.56291221]
[1761640060142,0.7603,4129.8,4129.7,0.79091221]
[1761640061751,0.7603,4129.8,4129.7,1.22681221]
[1761640061951,0.7603,4129.8,4129.7,0.79091221]
[1761640062151,0.7603,4129.8,4129.7,1.22681221]
[1761640062647,0.7603,4129.8,4129.7,0.79091221]
[1761640062849,0.7603,4129.8,4129.7,0.21791221]
[1761640063051,0.7603,4129.8,4129.7,0.00281221]
[1761640063348,0.7603,4129.8,4129.7,0.56291221]
[1761640063749,0.7603,4129.8,4129.7,0.79091221]
[1761640064746,0.7603,4129.8,4129.7,1.22682221]
[1761640064948,0.3208,4129.8,4129.7,1.22682221]
[1761640065148,0.5446,4130.4,4130.3,0.7881]
[1761640065349,1.07423555,4130.4,4130.3,0.7881]
[1761640065549,0.3208,4130.7,4130.5,0.43581]
[1761640065749,0.3208,4130.7,4130.6,0.7881]
[1761640065950,0.5446,4130.7,4130.6,1.22391]
[1761640066544,0.7603,4130.7,4130.6,0.7881]
[1761640066746,1.28987673,4130.7,4130.6,1.22391]
[1761640066950,0.52957673,4130.7,4130.6,1.22391]
[1761640067346,0.2238,4131.1,4131.0,0.2151]
[1761640067551,0.4395,4131.1,4131.0,0.2151]
[1761640067750,1.28985197,4131.1,4131.0,0.2151]
[1761640067950,42.08985197,4131.1,4131.0,0.2151]
[1761640068155,0.7603,4130.7,4130.6,0.78081]
[1761640068455,1.28985197,4130.7,4130.6,0.78081]
[1761640068751,1.28985197,4130.7,4130.6,0.99591]
[1761640068956,1.28985197,4130.7,4130.6,0.2151]
[1761640069158,1.28985197,4130.7,4130.6,0.65091]
[1761640069357,1.28985197,4130.7,4130.3,0.99594]
[1761640069358,0.7603,4130.4,4130.3,0.99594]
[1761640069561,0.7603,4130.4,4130.3,1.22394]
[1761640070553,0.4395,4130.4,4130.3,1.22394]
[1761640070753,0.2238,4130.7,4130.6,1.22391]
[1761640071160,0.7603,4130.7,4130.6,1.22391]
[1761640072860,0.7603,4130.7,4130.6,0.7881]
[1761640073059,1.28987609,4130.7,4130.6,0.7881]
[1761640073454,1.28987609,4130.7,4130.6,1.22391]
[1761640074159,1.28987609,4130.7,4130.6,0.7881]
[1761640074458,1.28987609,4130.7,4130.6,1.22391]
[1761640074850,1.28987609,4130.7,4130.6,0.7881]
[1761640075561,1.28987609,4130.7,4130.6,0.2151]
[1761640076060,0.7603,4130.7,4130.6,0.2151]
[1761640076963,0.7603,4130.7,4130.6,0.99591]
[1761640077151,0.7603,4130.7,4130.6,1.22391]
[1761640077761,0.7603,4130.7,4130.6,0.65091]
[1761640077957,0.4395,4130.7,4130.5,0.43582]
[1761640078163,0.7603,4130.6,4130.5,0.65092]
[1761640079360,0.7603,4130.6,4130.5,0.43582]
[1761640080066,0.8882,4130.5,4130.4,0.65093]
[1761640080260,0.3208,4130.4,4130.2,0.5601]
[1761640080464,0.4395,4130.1,4130.0,0.2151]
[1761640080672,0.7603,4130.1,4130.0,0.5601]
[1761640080861,0.7603,4130.1,4130.0,0.99597]
[1761640081063,0.7603,4129.9,4129.8,1.51574024]
[1761640081271,0.7603,4129.9,4129.8,1.86074024]
[1761640081461,0.7603,4129.9,4129.8,2.08874024]
[1761640081662,0.3208,4129.8,4129.7,0.86755245]
[1761640081966,0.3208,4129.8,4129.7,0.00281221]
[1761640081967,0.7603,4129.8,4129.7,0.00281221]
[1761640083161,41.5603,4129.8,4129.7,0.00281221]
[1761640084868,0.3122,4128.8,4128.7,1.08984024]
[1761640085072,0.7573,4128.8,4128.7,0.2251]
[1761640085361,0.1359,4129.0,4128.5,0.5609]
[1761640085362,0.7573,4128.6,4128.5,0.5609]
[1761640086069,0.7573,4128.6,4128.5,0.56274087]
[1761640086767,0.7573,4128.6,4128.5,0.00184087]
[1761640087465,41.5573,4128.6,4128.5,0.00184087]